fUSD/lending_fUSD_20240729
["ID","MTS","AMOUNT","RATE_DAILY","PERIOD"]
[333600691,1722273292149,-1000.0,0.00027447,120]
[333600692,1722273292175,-150.0,0.00027649,120]
[333600693,1722273292198,-1000.0,0.00027781,120]
[333600694,1722273292221,-1050.9,0.00028,120]
[333600695,1722273292243,-320.0,0.00028,60]
[333600696,1722273292269,-25961.85550575,0.00028,120]
[333600697,1722273292293,-4968.0,0.00028,120]
[333600698,1722273292316,-150.0,0.0002807,120]
[333600699,1722273292342,-1000.0,0.00028116,120]
[333600700,1722273292364,-11118.57014455,0.00028297,120]
[333600701,1722273292393,-150.0,0.0002832,120]
[333600702,1722273292417,-38052.41277806,0.000285,120]
[333600703,1722273292441,-1800.0,0.00029,30]
[333600704,1722273292463,-1000.0,0.00029,30]
[333600705,1722273292485,-2738.86475515,0.00029,120]
[333600706,1722273292508,-705.63230189,0.00029,120]
[333600707,1722273292531,-1000.0,0.000295,30]
[333600708,1722273292555,-150.0,0.00029616,120]
[333600709,1722273292578,-256.0,0.00029836,120]
[333600710,1722273292606,-150.0,0.00029935,120]
[333600711,1722273292632,-1208.0,0.00029968,30]
[333600712,1722273292655,-672.20914547,0.00029999,120]
[333600713,1722273292681,-50000.0,0.0003,30]
[333600714,1722273292704,-1000.0,0.0003,30]
[333600715,1722273292728,-1000.0,0.0003,120]
[333600716,1722273292751,-931.07269738,0.0003,70]
[333600717,1722273292774,-200.66544204,0.0003,90]
[333600718,1722273292797,-350.0,0.0003,90]
[333600719,1722273292821,-5867.58,0.0003,30]
[333600720,1722273292843,-1800.0,0.0003,31]
[333600721,1722273292867,-151.0,0.0003,120]
[333600722,1722273292893,-190.23333333,0.0003,120]
[333600723,1722273292915,-391.67636056,0.0003,30]
[333600724,1722273292938,-200.0,0.0003,60]
[333600725,1722273292960,-1729.41,0.0003,30]
[333600726,1722273292983,-1391.06811209,0.0003,120]
[333600727,1722273293007,-22311.79434241,0.0003,30]
[333600728,1722273293029,-160.0,0.0003,30]
[333600729,1722273293052,-15378.61882349,0.0003,120]
[333600730,1722273293077,-7655.22543324,0.000301,30]
[333600731,1722273293100,-201.56732976,0.00030137,60]
[333600732,1722273293127,-388.0,0.00030466,120]
[333600733,1722273293151,-548.0,0.00030613,30]
[333600734,1722273293174,-688.0,0.0003063,120]
[333600735,1722273293199,-388.0,0.0003063,120]
[333600736,1722273293223,-150.0,0.00030703,120]
[333600737,1722273293247,-250.0,0.000308,30]
[333600738,1722273293270,-190.23333333,0.00030849,120]
[333600739,1722273293293,-150.0,0.00030994,120]
[333600740,1722273293318,-50000.0,0.00031,31]
[333600741,1722273293341,-1000.0,0.00031,30]
[333600742,1722273293364,-1800.0,0.00031,32]
[333600743,1722273293388,-2015.0,0.00031,120]
[333600744,1722273293412,-2500.0,0.00031,30]
[333600745,1722273293434,-10494.23774342,0.00031,30]
[333600746,1722273293457,-9431.0,0.00031315,120]
[333600747,1722273293480,-810.7444655,0.000314,30]
[333600748,1722273293504,-150.0,0.00031491,120]
[333600749,1722273293527,-151.0,0.00031507,120]
[333600750,1722273293552,-163.16,0.00031635,30]
[333600751,1722273293575,-172.6,0.00031644,91]
[333600752,1722273293597,-190.23333333,0.00031699,120]
[333600753,1722273293621,-1810.20717369,0.000317,120]
[333600754,1722273293646,-150.0,0.0003191,120]
[333600755,1722273293671,-50000.0,0.00032,32]
[333600756,1722273293694,-1600.0,0.00032,120]
[333600757,1722273293717,-250.0,0.00032,120]
[333600758,1722273293740,-1000.0,0.00032,30]
[333600759,1722273293763,-159.21175941,0.00032,120]
[333600760,1722273293786,-1145.69048632,0.00032,120]
[333600761,1722273293811,-8618.89191146,0.00032,30]
[333600762,1722273293837,-1800.0,0.00032,33]
[333600763,1722273293862,-3007.42692169,0.00032383,120]
[333600764,1722273293894,-190.23333333,0.00032548,120]
[333600765,1722273293918,-4112.0,0.000327,35]
[333600766,1722273293942,-31853.8556,0.000328,60]
[333600767,1722273293966,-2000000.0,0.000328,30]
[333600768,1722273293989,-22458.56844325,0.00032865,30]
[333600769,1722273294013,-1000.0,0.00032876,30]
[333600770,1722273294036,-1000.0,0.00032876,30]
[333600771,1722273294058,-1000.0,0.00032876,30]
[333600772,1722273294081,-1000.0,0.00032876,30]
[333600773,1722273294103,-1000.0,0.00032876,30]
[333600774,1722273294132,-1000.0,0.00032876,30]
[333600775,1722273294154,-1000.0,0.00032876,30]
[333600776,1722273294177,-1000.0,0.00032876,30]
[333600777,1722273294200,-246.28496733,0.00032876,30]
[333600778,1722273294222,-1000.0,0.00032876,30]
[333600779,1722273294248,-1000.0,0.00032876,30]
[333600780,1722273294270,-1000.0,0.00032876,30]
[333600781,1722273294293,-1000.0,0.00032876,30]
[333600782,1722273294315,-1000.0,0.00032876,30]
[333600783,1722273294340,-520.27404476,0.00032876,30]
[333600784,1722273294361,-614.84240505,0.00032876,30]
[333600785,1722273294386,-1000.0,0.00032876,30]
[333600786,1722273294407,-1000.0,0.00032876,30]
[333600787,1722273294428,-1000.0,0.00032876,30]
[333600788,1722273294590,-1000.0,0.00032876,30]
[333600789,1722273294613,-1000.0,0.00032876,30]
[333600790,1722273294639,-1000.0,0.00032876,30]
[333600791,1722273294662,-999.22573061,0.00032876,30]
[333600792,1722273294685,-208.43290203,0.00032877,60]
[333600793,1722273294709,-169.85506265,0.000329,30]
[333600794,1722273294732,-73339.94947356,0.000329,30]
[333600795,1722273294758,-50000.0,0.00033,33]
[333600796,1722273294782,-250.0,0.00033,120]
[333600797,1722273294804,-30000.0,0.00033,30]
[333600798,1722273294827,-32748.76530489,0.00033,120]
[333600799,1722273294850,-330.24060935,0.00033,120]
[333600800,1722273294875,-151.0,0.00033014,120]
[333600801,1722273294899,-150.0,0.00033039,120]
[333600802,1722273294922,-150.0,0.00033114,120]
[333600803,1722273294945,-7594.21,0.00033151,120]
[333600804,1722273294969,-150.0,0.00033162,120]
[333600805,1722273294991,-1413.55719318,0.000333,60]
[333600806,1722273295049,-190.23333333,0.00033397,120]
[333600807,1722273295071,-768.0,0.00033674,30]
[333600808,1722273295094,-35852.5266872,0.000338,60]
[333600809,1722273295118,-50000.0,0.00034,34]
[333600810,1722273295148,-3000.0,0.00034,120]
[333600811,1722273295172,-4157.45880644,0.00034,120]
[333600812,1722273295195,-733.65503144,0.00034,60]
[333600813,1722273295217,-300.0,0.00034,120]
[333600814,1722273295241,-309.19017661,0.00034148,119]
[333600815,1722273295266,-2000.0,0.000342,120]
[333600816,1722273295290,-2000.0,0.000342,120]
[333600817,1722273295312,-190.23333333,0.00034247,120]
[333600818,1722273295335,-151.0,0.00034521,120]
[333600819,1722273295359,-150.0,0.00034525,120]
[333600820,1722273295384,-150.0,0.00034788,120]
[333600821,1722273295407,-35825.2886352,0.000348,60]
[333600822,1722273295430,-4166.16342,0.000348,30]
[333600823,1722273295452,-8041.692376,0.000348,30]
[333600824,1722273295480,-50000.0,0.00035,35]
[333600825,1722273295502,-1896.40558112,0.00035,30]
[333600826,1722273295525,-1000.0,0.00035,60]
[333600827,1722273295547,-1091789.09383189,0.00035,30]
[333600828,1722273295569,-221.20758739,0.00035,30]
[333600829,1722273295592,-2193.41010674,0.00035,30]
[333600830,1722273295616,-526.09851313,0.00035,90]
[333600831,1722273295642,-35097.61698796,0.00035,120]
[333600832,1722273295664,-150.43574671,0.00035,120]
[333600833,1722273295686,-5554.88456,0.00035,30]
[333600834,1722273295709,-1007.99339217,0.00035,30]
[333600835,1722273295733,-4499.98578188,0.00035,30]
[333600836,1722273295756,-17922.65021026,0.00035,30]
[333600837,1722273295780,-445.62000001,0.00035,30]
[333600838,1722273295803,-146890.08809244,0.00035,30]
[333600839,1722273295826,-4041.33891544,0.00035,120]
[333600840,1722273295848,-188.62307431,0.00035,120]
[333600841,1722273295874,-10722.256501,0.00035,30]
[333600842,1722273295898,-13710.358,0.00035,30]
[333600843,1722273295922,-26839.1,0.00035,30]
[333600844,1722273295945,-16597.31187728,0.00035,30]
[333600845,1722273295969,-17252.68802272,0.00035,30]
[333600846,1722273295992,-3500.0,0.00035,120]
[333600847,1722273296015,-202.2977019,0.00035,30]
[333600848,1722273296038,-45360.75362967,0.00035,30]
[333600849,1722273296061,-681.09304382,0.00035,30]
[333600850,1722273296084,-350.0,0.00035,120]
[333600851,1722273296106,-151.22,0.00035,120]
[333600852,1722273296131,-1100.0,0.00035,30]
[333600853,1722273296154,-190.23333333,0.00035096,120]
[333600854,1722273296176,-299.78463751,0.00035423,40]
[333600855,1722273296198,-3062.58947916,0.00035423,40]
[333600856,1722273296221,-249.39548346,0.00035423,40]
[333600857,1722273296245,-434.67128659,0.00035423,40]
[333600858,1722273296269,-6943.6057,0.000355,30]
[333600859,1722273296292,-13402.820627,0.000355,30]
[333600860,1722273296315,-45000.0,0.000356,30]
[333600861,1722273296338,-8332.32684,0.000356,30]
[333600862,1722273296360,-16083.384752,0.000356,30]
[333600863,1722273296384,-200.0,0.00035616,60]
[333600864,1722273296406,-8332.32684,0.000357,30]
[333600865,1722273296429,-16083.384752,0.000357,30]
[333600866,1722273296451,-205.0,0.000358,30]
[333600867,1722273296473,-32489.526688,0.000358,60]
[333600868,1722273296495,-9721.04798,0.000358,30]
[333600869,1722273296517,-18763.948878,0.000358,30]
[333600870,1722273296539,-8332.32684,0.0003582,30]
[333600871,1722273296561,-16083.384752,0.0003582,30]
[333600872,1722273296584,-190.23333333,0.00035945,120]
[333600873,1722273296610,-50000.0,0.00036,36]
[333600874,1722273296635,-2000.0,0.00036,120]
[333600875,1722273296657,-2000.0,0.00036,120]
[333600876,1722273296681,-3000.0,0.00036,120]
[333600877,1722273296703,-151.0,0.00036027,120]
[333600878,1722273296751,-4523.2,0.00036114,54]
[333600879,1722273296774,-42700.0,0.000364,120]
[333600880,1722273296797,-190.23333333,0.00036795,120]
[333600881,1722273296819,-35853.56682,0.000368,60]
[333600882,1722273296842,-406.07946764,0.00036986,90]
[333600883,1722273296868,-50000.0,0.00037,37]
[333600884,1722273296893,-1000.0,0.00037,30]
[333600885,1722273296916,-2500.0,0.00037,30]
[333600886,1722273296938,-573.0,0.00037042,30]
[333600887,1722273296960,-26839.1,0.000375,30]
[333600888,1722273296983,-151.0,0.00037534,120]
[333600889,1722273297006,-190.23333333,0.00037644,120]
[333600890,1722273297174,-35288.5286,0.000378,60]
[333600891,1722273297198,-4093.0,0.000378,70]
[333600892,1722273297220,-203.13872989,0.00037999,120]
[333600893,1722273297245,-50000.0,0.00038,38]
[333600894,1722273297271,-1129.77480793,0.00038,30]
[333600895,1722273297295,-1400.0,0.00038,120]
[333600896,1722273297318,-3000.0,0.00038,120]
[333600897,1722273297342,-11091.70474901,0.00038,120]
[333600898,1722273297364,-2570.56308421,0.00038,120]
[333600899,1722273297389,-545.67519218,0.00038,30]
[333600900,1722273297412,-800000.0,0.00038,30]
[333600901,1722273297437,-200.06477287,0.00038356,60]
[333600926,1722273306033,505.57,0.00035616,120]
[333600927,1722273307525,800.0,0.00038356,120]
[333600928,1722273310707,5730.64043302,0.00038356,30]
[333600929,1722273310737,270.379,0.00036301,30]
[333600930,1722273313310,215.36,0.0001789,30]
[333600931,1722273321010,2498.29885926,0.0003452,30]
[333600932,1722273321615,200.0,0.00027397,60]
[333600933,1722273322016,200.0,0.00030137,60]
[333600934,1722273322358,201.54299034,0.00032877,60]
[333600937,1722273364897,800.0,0.00038356,120]
[333600938,1722273367762,1524.07656009,0.00038356,30]
[333600939,1722273376819,741.8347084,0.00032877,50]
[333600940,1722273384513,3939.0,0.000327,35]
[333600941,1722273384838,4334.0,0.00036114,54]
[333600942,1722273385039,3373.42072162,0.00037999,31]
[333600943,1722273403111,13404.40778799,0.00034793,30]
[333600944,1722273406417,384.58940483,0.0003,30]
[333600945,1722273414136,13404.40778799,0.00034793,30]
[333600946,1722273426697,800.0,0.00038356,120]
[333600947,1722273430183,5730.64043302,0.00032877,30]
[333600948,1722273431175,16901.0,0.00038356,60]
[333600949,1722273439519,4000.0,0.00027397,30]
[333600951,1722273449682,27227.16516239,0.00034793,30]
[333600952,1722273592465,229.53538607,0.00027,120]
[333601021,1722273675601,163.16,0.0001337,30]
[333601022,1722273684328,-500.0,0.00026082,30]
[333601023,1722273684352,-500.0,0.00026082,30]
[333601024,1722273684378,-500.0,0.00026082,30]
[333601025,1722273684400,-500.0,0.00026082,30]
[333601026,1722273684425,-500.0,0.00026082,30]
[333601027,1722273684450,-500.0,0.00026082,30]
[333601028,1722273684475,-500.0,0.00026082,30]
[333601029,1722273684498,-500.0,0.00026082,30]
[333601030,1722273684520,-500.0,0.00026082,30]
[333601031,1722273684543,-500.0,0.00026082,30]
[333601032,1722273684565,-500.0,0.00026082,30]
[333601033,1722273684588,-500.0,0.00026082,30]
[333601034,1722273684613,-500.0,0.00026473,30]
[333601035,1722273684638,-500.0,0.0002687,30]
[333601036,1722273684662,-367.2709856,0.00027,50]
[333601037,1722273684691,-800.0,0.00027014,120]
[333601038,1722273684770,-500.0,0.00027273,30]
[333601039,1722273684841,-500.0,0.00027683,30]
[333601040,1722273684923,-500.0,0.00028098,30]
[333601041,1722273684948,-500.0,0.00028519,30]
[333601042,1722273684972,-500.0,0.00028947,30]
[333601043,1722273684995,-450.25468198,0.00029381,30]
[333601044,1722273685032,-163.16,0.00031635,30]
[333601045,1722273685058,-22488.26779968,0.00032875,30]
[333601046,1722273685082,-892.9062825,0.00032889,30]
[333601047,1722273685141,-280826.39105739,0.00034499,30]
[333601048,1722273685165,-280826.39105739,0.00034499,30]
[333601049,1722273685190,-892.9062825,0.00034699,30]
[333601050,1722273685216,-12894.20860707,0.00034699,30]
[333601051,1722273685249,-500.0,0.00038356,30]
[333601052,1722273685272,-500.0,0.00038356,30]
[333601053,1722273685297,-500.0,0.00038356,30]
[333601054,1722273685320,-500.0,0.00038356,30]
[333601055,1722273685343,-500.0,0.00038356,30]
[333601056,1722273685366,-500.0,0.00038356,30]
[333601057,1722273685393,-500.0,0.00038356,30]
[333601058,1722273685416,-500.0,0.00038356,30]
[333601059,1722273685438,-500.0,0.00038356,30]
[333601060,1722273685466,-500.0,0.00038356,30]
[333601061,1722273685490,-500.0,0.00038356,30]
[333601062,1722273685513,-800.0,0.00038356,120]
[333601063,1722273685557,500.0,0.00038356,30]
[333601064,1722273685621,500.0,0.00026082,30]
[333601065,1722273685648,500.0,0.00038356,30]
[333601066,1722273685750,500.0,0.00038356,30]
[333601067,1722273685838,500.0,0.00038356,30]
[333601068,1722273686423,500.0,0.00038356,30]
[333601069,1722273686937,500.0,0.00038356,30]
[333601070,1722273687644,500.0,0.00026082,30]
[333601071,1722273688082,500.0,0.00026082,30]
[333601072,1722273688561,500.0,0.00026082,30]
[333601073,1722273689129,640.92087202,0.00026082,30]
[333601074,1722273689762,500.0,0.00038356,30]
[333601075,1722273693288,500.0,0.00038356,30]
[333601076,1722273693755,500.0,0.00038356,30]
[333601077,1722273694313,500.0,0.00038356,30]
[333601101,1722274232935,-163.7,8.219e-05,2]
[333601104,1722274232945,-305.32406266,8.219e-05,2]
[333601110,1722274233082,-234.66593734,8.219e-05,2]
[333601111,1722274233092,-385.82,9.28e-05,2]
[333601112,1722274233102,-317.72685751,9.38e-05,2]
[333601113,1722274233114,-705.85314249,9.38e-05,2]
[333601114,1722274233124,-300.0,9.458e-05,2]
[333601115,1722274233136,-2349.4548752,9.459e-05,2]
[333601116,1722274233153,-4591.446,9.459e-05,2]
[333601117,1722274233177,-415.22091175,9.459e-05,2]
[333601118,1722274233191,-14352.00821305,9.459e-05,2]
[333601119,1722274233201,-923.14,9.472e-05,2]
[333601120,1722274233212,-1000.0,9.679e-05,2]
[333601121,1722274233222,-171.97,9.783e-05,2]
[333601122,1722274233232,-150.0,9.888e-05,2]
[333601123,1722274233242,-200.0,9.9e-05,3]
[333601124,1722274233252,-7146.31,0.0001,2]
[333601125,1722274233262,-500.0,0.0001,3]
[333601126,1722274233271,-150.0,0.00010009,2]
[333601127,1722274233282,-211024.0,0.0001001,2]
[333601128,1722274233291,-5545.70478356,0.0001008,2]
[333601129,1722274233301,-499.99,0.0001008,2]
[333601130,1722274233311,-800.0,0.000101,3]
[333601131,1722274233320,-850.82,0.0001019,2]
[333601132,1722274233330,-151.68,0.00010192,2]
[333601133,1722274233339,-300.0,0.00010192,2]
[333601134,1722274233349,-303.07,0.00010192,2]
[333601135,1722274233359,-330.53,0.00010192,2]
[333601137,1722274233369,-527.94,0.00010192,2]
[333601139,1722274233378,-15393.9015,0.000102,2]
[333601141,1722274233389,-2151.4055,0.000102,2]
[333601142,1722274233399,-3455.5971,0.000102,2]
[333601143,1722274233408,-1000.0,0.000102,2]
[333601144,1722274233418,-2500.0,0.000102,2]
[333601145,1722274233427,-1100.0,0.000102,3]
[333601146,1722274233437,-169.01681466,0.000102,2]
[333601148,1722274233446,-850.82,0.0001029,2]
[333601149,1722274233456,-850.82,0.0001029,2]
[333601150,1722274233465,-850.82,0.0001029,2]
[333601151,1722274233475,-850.82,0.0001029,2]
[333601152,1722274233485,-850.82,0.0001029,2]
[333601153,1722274233495,-850.82,0.0001029,2]
[333601154,1722274233504,-850.82,0.0001029,2]
[333601155,1722274233513,-850.82,0.0001029,2]
[333601156,1722274233523,-850.82,0.0001029,2]
[333601157,1722274233533,-20600.2633,0.000103,2]
[333601158,1722274233548,-100000.0,0.000103,2]
[333601159,1722274233557,-1000.0,0.000103,2]
[333601160,1722274233566,-39599.37561489,0.000103,2]
[333601161,1722274233578,-33485.75,0.000103,2]
[333601162,1722274233602,-776.61022031,0.000103,2]
[333601163,1722274233622,-33411.35919999,0.000103,2]
[333601173,1722274238538,-1337.1,0.000103,2]
[333601174,1722274238772,-1197.7017767,0.000103,2]
[333601175,1722274238852,-3680.24283908,0.000103,2]
[333601176,1722274238863,-1997.52177788,0.000103,2]
[333601178,1722274238876,-7764.13199422,0.000103,2]
[333601180,1722274238889,-895.42527693,0.000103,2]
[333601181,1722274238899,-106.2873733,0.000103,2]
[333601200,1722274243317,-393.7126267,0.000103,2]
[333601201,1722274243327,-2860.7401933,0.000103,2]
[333601202,1722274243339,-636.42,0.000103,2]
[333601203,1722274243394,-492.55741441,0.000103,2]
[333601204,1722274243406,-1758.29819229,0.000103,2]
[333601205,1722274243415,-1400.0,0.000103,3]
[333601206,1722274243424,-200.0,0.000104,3]
[333601207,1722274243433,-420.0,0.00010403,2]
[333601208,1722274243442,-539.99,0.00010443,2]
[333601209,1722274243451,-425.72,0.00010478,2]
[333601210,1722274243461,-530.19,0.00010478,2]
[333601211,1722274243470,-355.99,0.00010478,2]
[333601212,1722274243479,-150.0,0.00010478,2]
[333601213,1722274243488,-425.72,0.00010478,2]
[333601214,1722274243497,-530.19,0.00010478,2]
[333601215,1722274243506,-355.99,0.00010478,2]
[333601216,1722274243515,-150.0,0.00010478,2]
[333601217,1722274243525,-530.19,0.00010478,2]
[333601218,1722274243534,-425.72,0.00010478,2]
[333601219,1722274243543,-355.99,0.00010478,2]
[333601220,1722274243557,-150.0,0.00010478,2]
[333601221,1722274243566,-530.19,0.00010478,2]
[333601222,1722274243575,-150.0,0.00010478,2]
[333601223,1722274243585,-425.72,0.00010478,2]
[333601224,1722274243595,-425.72,0.00010478,2]
[333601225,1722274243604,-150.0,0.00010478,2]
[333601226,1722274243613,-848.92,0.00010478,2]
[333601227,1722274243624,-300.0,0.00010478,2]
[333601228,1722274243633,-3989.959354,0.00010492,2]
[333601229,1722274243645,-163.983566,0.00010492,2]
[333601230,1722274243654,-181.117558,0.00010492,2]
[333601231,1722274243663,-3582.506544,0.00010492,2]
[333601232,1722274243672,-181.117559,0.00010492,2]
[333601233,1722274243682,-12804.49110925,0.000105,2]
[333601234,1722274243691,-200.0,0.000105,3]
[333601235,1722274243700,-169.01681465,0.0001055,2]
[333601236,1722274243709,-200.0,0.000106,3]
[333601237,1722274243718,-3989.959354,0.00010623,2]
[333601238,1722274243726,-163.983566,0.00010623,2]
[333601239,1722274243736,-3582.506544,0.00010623,2]
[333601240,1722274243745,-200.0,0.000107,3]
[333601241,1722274243754,-3989.959354,0.00010754,2]
[333601242,1722274243763,-163.983566,0.00010754,2]
[333601243,1722274243773,-3582.506544,0.00010754,2]
[333601245,1722274243782,-21957.18722,0.000108,2]
[333601247,1722274243791,-1000.0,0.000108,3]
[333601250,1722274243800,-500.0,0.00010849,2]
[333601252,1722274243809,-483.04027444,0.00010857,2]
[333601254,1722274243818,-177.34217462,0.00010858,2]
[333601255,1722274243828,-261.96789196,0.00010858,2]
[333601257,1722274243837,-187.04562962,0.00010858,2]
[333601259,1722274243846,-500.0,0.00010858,2]
[333601261,1722274243855,-483.04027444,0.00010862,2]
[333601263,1722274243864,-500.0,0.00010867,2]
[333601265,1722274243873,-261.96789195,0.00010874,2]
[333601267,1722274243883,-500.0,0.00010876,2]
[333601269,1722274243894,-483.04027444,0.00010879,2]
[333601271,1722274243903,-6807.4,0.0001088,2]
[333601273,1722274243912,-500.0,0.00010885,2]
[333601275,1722274243921,-3989.959354,0.00010885,2]
[333601277,1722274243931,-163.983566,0.00010885,2]
[333601279,1722274243940,-3582.506544,0.00010885,2]
[333601281,1722274243949,-1000.0,0.00010888,2]
[333601283,1722274243958,-261.96789195,0.0001089,2]
[333601285,1722274243967,-500.0,0.00010893,2]
[333601286,1722274243977,-1000.0,0.00010899,2]
[333601288,1722274243987,-174.20813664,0.00010899,2]
[333601290,1722274243995,-2250.69244107,0.00010899,2]
[333601292,1722274244005,-169.01681465,0.00010899,2]
[333601294,1722274244015,-452.76835362,0.00010899,2]
[333601296,1722274244024,-174.20813664,0.00010899,2]
[333601298,1722274244033,-2250.69244107,0.000109,2]
[333601300,1722274244042,-452.76835361,0.000109,2]
[333601302,1722274244051,-174.20813664,0.000109,2]
[333601304,1722274244061,-174.20813664,0.000109,2]
[333601305,1722274244070,-179.37844276,0.000109,2]
[333601307,1722274244079,-179.37844276,0.000109,2]
[333601309,1722274244089,-2250.69244107,0.000109,2]
[333601311,1722274244098,-152.59,0.000109,2]
[333601313,1722274244107,-452.76835361,0.000109,2]
[333601315,1722274244116,-500.0,0.00010902,2]
[333601317,1722274244126,-219.16,0.00010904,2]
[333601319,1722274244135,-500.0,0.00010911,2]
[333601321,1722274244150,-500.0,0.00010911,2]
[333601323,1722274244159,-500.0,0.0001092,2]
[333601325,1722274244168,-500.0,0.00010929,2]
[333601327,1722274244178,-500.0,0.00010937,2]
[333601330,1722274244188,-500.0,0.00010944,2]
[333601331,1722274244197,-500.0,0.00010944,2]
[333601334,1722274244206,-500.0,0.00010944,2]
[333601336,1722274244216,-500.0,0.00010944,2]
[333601337,1722274244226,-500.0,0.00010944,2]
[333601339,1722274244235,-500.0,0.00010944,2]
[333601341,1722274244244,-500.0,0.00010944,2]
[333601343,1722274244254,-500.0,0.00010944,2]
[333601344,1722274244263,-626.0355,0.00010944,2]
[333601345,1722274244272,-500.0,0.00010946,2]
[333601346,1722274244281,-500.0,0.00010955,2]
[333601347,1722274244290,-930.712171,0.00010955,2]
[333601348,1722274244299,-500.0,0.00010958,2]
[333601349,1722274244308,-434.35008783,0.00010958,2]
[333601350,1722274244317,-500.0,0.00010958,2]
[333601351,1722274244326,-358.94243054,0.00010958,2]
[333601352,1722274244335,-347.95300001,0.00010958,2]
[333601353,1722274244344,-500.91437621,0.00010958,2]
[333601354,1722274244354,-524.84642712,0.00010958,2]
[333601355,1722274244363,-500.0,0.00010958,2]
[333601356,1722274244372,-500.0,0.00010958,2]
[333601357,1722274244382,-548.98961342,0.00010958,2]
[333601358,1722274244393,-500.0,0.00010958,2]
[333601359,1722274244403,-500.0,0.00010958,2]
[333601360,1722274244412,-500.0,0.00010958,2]
[333601361,1722274244421,-510.95140685,0.00010958,2]
[333601362,1722274244429,-174.82084752,0.00010958,2]
[333601363,1722274244438,-505.46786168,0.00010958,2]
[333601364,1722274244448,-504.78195655,0.00010958,2]
[333601365,1722274244457,-152.88214184,0.00010958,2]
[333601366,1722274244466,-500.0,0.00010958,2]
[333601367,1722274244475,-500.0,0.00010958,2]
[333601368,1722274244484,-500.0,0.00010958,2]
[333601369,1722274244493,-500.0,0.00010958,2]
[333601370,1722274244502,-500.0,0.00010958,2]
[333601371,1722274244511,-500.0,0.00010958,2]
[333601372,1722274244520,-500.0,0.00010958,2]
[333601373,1722274244529,-509.44034934,0.00010958,2]
[333601374,1722274244539,-500.0,0.00010958,2]
[333601375,1722274244550,-459.30545034,0.00010958,2]
[333601376,1722274244560,-507.78514724,0.00010958,2]
[333601377,1722274244569,-512.57863672,0.00010958,2]
[333601378,1722274244578,-500.0,0.00010958,2]
[333601379,1722274244588,-500.0,0.00010958,2]
[333601380,1722274244598,-509.15247424,0.00010958,2]
[333601381,1722274244607,-631.88956473,0.00010958,2]
[333601382,1722274244616,-509.53811619,0.00010958,2]
[333601383,1722274244626,-500.0,0.00010958,2]
[333601384,1722274244635,-501.8184389,0.00010958,2]
[333601385,1722274244646,-500.0,0.00010958,2]
[333601386,1722274244655,-500.0,0.00010958,2]
[333601387,1722274244665,-506.33442104,0.00010958,2]
[333601388,1722274244674,-500.0,0.00010958,2]
[333601389,1722274244683,-500.0,0.00010958,2]
[333601390,1722274244692,-513.26653332,0.00010958,2]
[333601391,1722274244701,-500.0,0.00010958,2]
[333601392,1722274244710,-500.0,0.00010958,2]
[333601393,1722274244720,-500.0,0.00010958,2]
[333601394,1722274244729,-361.45647806,0.00010958,2]
[333601395,1722274244739,-510.99471531,0.00010958,2]
[333601396,1722274244748,-500.0,0.00010958,2]
[333601397,1722274244757,-300.0,0.00010958,2]